fUST/lending_fUST_20240620
["ID","MTS","AMOUNT","RATE_DAILY","PERIOD"]
[329984496,1718896242043,-503.1677417,0.00054794,120]
[329984497,1718896242052,-500.0,0.00054794,120]
[329984498,1718896242063,-500.0,0.00054794,120]
[329984499,1718896242073,-502.42198833,0.00054794,120]
[329984500,1718896242083,-500.0,0.00054794,120]
[329984501,1718896242094,-871.01,0.00054794,21]
[329984502,1718896242104,-617.84651404,0.00054794,120]
[329984503,1718896242113,-500.0,0.00054794,120]
[329984504,1718896242124,-1488.1,0.00054794,120]
[329984505,1718896242133,-500.0,0.00054794,120]
[329984506,1718896242144,-519.64839721,0.00054794,120]
[329984507,1718896242155,-500.0,0.00054794,120]
[329984508,1718896242165,-501.52737226,0.00054794,120]
[329984509,1718896242174,-500.0,0.00054794,120]
[329984510,1718896242184,-500.0,0.00054794,120]
[329984511,1718896242194,-500.0,0.00054794,120]
[329984512,1718896242204,-500.0,0.00054794,120]
[329984513,1718896242213,-500.0,0.00054794,120]
[329984514,1718896242319,-500.0,0.00054794,120]
[329984515,1718896242331,-504.28802421,0.00054794,120]
[329984516,1718896242342,-500.0,0.00054794,120]
[329984517,1718896242351,-508.82983143,0.00054794,120]
[329984518,1718896242365,-500.0,0.00054794,120]
[329984519,1718896242376,-500.0,0.00054794,120]
[329984520,1718896242386,-500.0,0.00054794,120]
[329984521,1718896242395,-505.1978789,0.00054794,120]
[329984522,1718896242405,-500.81743505,0.00054794,120]
[329984523,1718896242415,-500.0,0.00054794,120]
[329984524,1718896242426,-503.97337733,0.00054794,120]
[329984525,1718896242435,-501.48129366,0.00054794,120]
[329984526,1718896242447,-500.0,0.00054794,120]
[329984527,1718896242458,-500.0,0.00054794,120]
[329984528,1718896242468,-500.0,0.00054794,120]
[329984529,1718896242479,-501.47404528,0.00054794,120]
[329984530,1718896242489,-500.0,0.00054794,120]
[329984531,1718896242500,-500.0,0.00054794,120]
[329984532,1718896242510,-500.0,0.00054794,120]
[329984533,1718896242520,-506.82043498,0.00054794,120]
[329984534,1718896242531,-507.83332134,0.00054794,120]
[329984535,1718896242541,-500.0,0.00054794,120]
[329984536,1718896242551,-508.11024662,0.00054794,120]
[329984537,1718896242561,-500.0,0.00054794,120]
[329984538,1718896242571,-512.47677426,0.00054794,120]
[329984539,1718896242580,-518.15210515,0.00054794,120]
[329984540,1718896242591,-500.0,0.00054794,120]
[329984541,1718896242600,-501.32530366,0.00054794,120]
[329984542,1718896242610,-516.31032636,0.00054794,120]
[329984543,1718896242619,-272.81649475,0.00054794,120]
[329984544,1718896242630,-1347.71,0.00054794,120]
[329984545,1718896242639,-633.88,0.00054794,120]
[329984546,1718896242648,-503.16365703,0.00054794,120]
[329984547,1718896242659,-500.0,0.00054794,120]
[329984548,1718896242668,-500.0,0.00054794,120]
[329984549,1718896242678,-593.8984574,0.00054794,120]
[329984550,1718896242688,-500.0,0.00054794,120]
[329984551,1718896242697,-219.26218121,0.00054794,120]
[329984552,1718896242706,-424.21154394,0.00054794,120]
[329984553,1718896242716,-500.0,0.00054794,120]
[329984554,1718896242725,-506.95191308,0.00054794,120]
[329984555,1718896242734,-500.0,0.00054794,120]
[329984556,1718896242744,-169.65955374,0.00054794,120]
[329984557,1718896242753,-508.82622063,0.00054794,120]
[329984558,1718896242763,-500.0,0.00054794,120]
[329984559,1718896242772,-500.0,0.00054794,120]
[329984560,1718896242782,-542.1,0.00054794,120]
[329984561,1718896242791,-542.1,0.00054794,120]
[329984562,1718896242800,-542.1,0.00054794,120]
[329984563,1718896242810,-2316.04,0.00054794,120]
[329984564,1718896242819,-551.84841927,0.00054794,120]
[329984565,1718896242829,-512.75001546,0.00054794,120]
[329984566,1718896242838,-709.17,0.00054794,120]
[329984567,1718896242848,-500.0,0.00054794,120]
[329984568,1718896242857,-500.0,0.00054794,120]
[329984569,1718896242867,-539.58,0.00054794,120]
[329984570,1718896242876,-510.87191922,0.00054794,120]
[329984571,1718896242885,-500.0,0.00054794,120]
[329984572,1718896242895,-500.0,0.00054794,120]
[329984573,1718896242905,-1554.58,0.00054794,120]
[329984574,1718896242916,-481.58990943,0.00054794,120]
[329984575,1718896242926,-500.0,0.00054794,120]
[329984576,1718896242935,-559.62,0.00054794,120]
[329984577,1718896242945,-500.0,0.00054794,120]
[329984578,1718896242954,-500.0,0.00054794,120]
[329984579,1718896242964,-500.0,0.00054794,2]
[329984580,1718896242974,-500.0,0.00054794,120]
[329984581,1718896242984,-518.62,0.00054794,120]
[329984582,1718896242993,-500.0,0.00054794,120]
[329984583,1718896243003,-500.0,0.00054794,120]
[329984584,1718896243013,-329.56637329,0.00054794,120]
[329984585,1718896243023,-500.0,0.00054794,120]
[329984586,1718896243033,-1167.58,0.00054794,120]
[329984587,1718896243042,-500.0,0.00054794,120]
[329984588,1718896243052,-3012.35,0.00054794,120]
[329984589,1718896243062,-20641.66,0.00054794,120]
[329984590,1718896243072,-1547.37,0.00054794,120]
[329984591,1718896243082,-1875.3,0.00054794,120]
[329984592,1718896243091,-1000.0,0.00055,120]
[329984593,1718896243101,-542.1,0.00055067,120]
[329984594,1718896243111,-500.0,0.00055068,120]
[329984595,1718896243120,-500.0,0.00055068,120]
[329984596,1718896243130,-507.91278135,0.00055068,120]
[329984597,1718896243140,-500.0,0.00055068,2]
[329984598,1718896243150,-500.0,0.00055068,120]
[329984599,1718896243164,-323.27453822,0.00055068,120]
[329984600,1718896243173,-500.0,0.00055068,120]
[329984601,1718896243183,-1897.85,0.00055068,120]
[329984602,1718896243192,-957.68,0.00055068,120]
[329984603,1718896243201,-500.0,0.00055068,120]
[329984604,1718896243210,-274.37232236,0.00055068,120]
[329984605,1718896243219,-500.0,0.00055068,120]
[329984606,1718896243228,-500.0,0.00055068,120]
[329984607,1718896243237,-500.0,0.00055068,120]
[329984608,1718896243248,-500.0,0.00055068,120]
[329984609,1718896243258,-548.69,0.00055068,120]
[329984610,1718896243268,-500.0,0.00055068,120]
[329984611,1718896243278,-500.0,0.00055068,120]
[329984612,1718896243289,-500.0,0.00055068,60]
[329984613,1718896243299,-500.0,0.00055068,120]
[329984614,1718896243309,-1016.9,0.00055068,120]
[329984615,1718896243319,-500.0,0.00055068,120]
[329984616,1718896243328,-871.01,0.00055068,21]
[329984617,1718896243338,-1488.1,0.00055068,120]
[329984618,1718896243347,-500.0,0.00055068,120]
[329984619,1718896243357,-500.0,0.00055068,120]
[329984620,1718896243369,-500.0,0.00055068,120]
[329984621,1718896243379,-500.0,0.00055068,120]
[329984622,1718896243389,-500.0,0.00055068,120]
[329984623,1718896243399,-500.0,0.00055068,120]
[329984624,1718896243414,-500.0,0.00055068,120]
[329984625,1718896243423,-1347.71,0.00055068,120]
[329984626,1718896243432,-633.88,0.00055068,120]
[329984627,1718896243443,-500.0,0.00055068,120]
[329984628,1718896243453,-500.0,0.00055068,120]
[329984629,1718896243462,-2316.04,0.00055068,120]
[329984630,1718896243472,-709.17,0.00055068,120]
[329984631,1718896243482,-500.0,0.00055068,120]
[329984632,1718896243491,-539.58,0.00055068,120]
[329984633,1718896243500,-500.0,0.00055068,120]
[329984634,1718896243510,-500.0,0.00055068,120]
[329984635,1718896243519,-1554.58,0.00055068,120]
[329984636,1718896243529,-500.0,0.00055068,120]
[329984637,1718896243538,-559.62,0.00055068,120]
[329984638,1718896243547,-500.0,0.00055068,120]
[329984639,1718896243557,-500.0,0.00055068,2]
[329984640,1718896243566,-500.0,0.00055068,120]
[329984641,1718896243575,-1167.58,0.00055068,120]
[329984642,1718896243584,-500.0,0.00055068,120]
[329984643,1718896243593,-20641.66,0.00055068,120]
[329984644,1718896243603,-3012.35,0.00055068,120]
[329984648,1718896243612,-1547.37,0.00055068,120]
[329984652,1718896243621,-1875.3,0.00055068,120]
[329984655,1718896243631,-542.1,0.00055341,120]
[329984658,1718896243640,-542.1,0.00055341,120]
[329984659,1718896243650,-500.0,0.00055342,120]
[329984661,1718896243663,-500.0,0.00055342,120]
[329984663,1718896243672,-500.0,0.00055342,2]
[329984665,1718896243682,-500.0,0.00055342,120]
[329984667,1718896243690,-1897.85,0.00055342,120]
[329984668,1718896243700,-957.68,0.00055342,120]
[329984670,1718896243709,-500.0,0.00055342,120]
[329984672,1718896243718,-500.0,0.00055342,120]
[329984673,1718896243729,-500.0,0.00055342,120]
[329984674,1718896243738,-500.0,0.00055342,120]
[329984675,1718896243747,-500.0,0.00055342,120]
[329984676,1718896243756,-500.0,0.00055342,60]
[329984678,1718896243766,-500.0,0.00055342,120]
[329984680,1718896243775,-1016.9,0.00055342,120]
[329984682,1718896243784,-871.01,0.00055342,21]
[329984684,1718896243793,-1488.1,0.00055342,120]
[329984686,1718896243803,-500.0,0.00055342,120]
[329984688,1718896243813,-500.0,0.00055342,120]
[329984690,1718896243823,-500.0,0.00055342,120]
[329984692,1718896243832,-500.0,0.00055342,120]
[329984693,1718896243841,-500.0,0.00055342,120]
[329984695,1718896243850,-500.0,0.00055342,120]
[329984697,1718896243859,-500.0,0.00055342,120]
[329984699,1718896243868,-1347.71,0.00055342,120]
[329984700,1718896243878,-633.88,0.00055342,120]
[329984701,1718896243886,-500.0,0.00055342,120]
[329984702,1718896243896,-500.0,0.00055342,120]
[329984704,1718896243907,-2316.04,0.00055342,120]
[329984706,1718896243916,-709.17,0.00055342,120]
[329984707,1718896243926,-500.0,0.00055342,120]
[329984708,1718896243935,-539.58,0.00055342,120]
[329984709,1718896243944,-500.0,0.00055342,120]
[329984710,1718896243954,-500.0,0.00055342,120]
[329984711,1718896243963,-1554.58,0.00055342,120]
[329984712,1718896243972,-500.0,0.00055342,120]
[329984713,1718896243982,-559.62,0.00055342,120]
[329984714,1718896243991,-366.48415421,0.00055342,120]
[329984715,1718896244000,-500.0,0.00055342,2]
[329984716,1718896244010,-500.0,0.00055342,120]
[329984717,1718896244019,-1167.58,0.00055342,120]
[329984718,1718896244029,-500.0,0.00055342,120]
[329984719,1718896244039,-3012.35,0.00055342,120]
[329984720,1718896244048,-20641.66,0.00055342,120]
[329984721,1718896244058,-1547.37,0.00055342,120]
[329984722,1718896244068,-1875.3,0.00055342,120]
[329984723,1718896244078,-542.1,0.00055615,120]
[329984724,1718896244087,-1241.73574366,0.00055616,61]
[329984725,1718896244096,-213.8781557,0.00055616,120]
[329984726,1718896244106,-191.44250752,0.00055616,120]
[329984727,1718896244116,-500.0,0.00055616,2]
[329984728,1718896244126,-500.0,0.00055616,120]
[329984729,1718896244135,-1897.85,0.00055616,120]
[329984730,1718896244144,-957.68,0.00055616,120]
[329984731,1718896244157,-500.0,0.00055616,120]
[329984732,1718896244167,-500.0,0.00055616,120]
[329984733,1718896244176,-500.0,0.00055616,120]
[329984734,1718896244186,-500.0,0.00055616,120]
[329984735,1718896244196,-500.0,0.00055616,60]
[329984736,1718896244206,-500.0,0.00055616,120]
[329984737,1718896244216,-1016.9,0.00055616,120]
[329984738,1718896244225,-871.01,0.00055616,21]
[329984739,1718896244235,-1488.1,0.00055616,120]
[329984740,1718896244245,-500.0,0.00055616,120]
[329984741,1718896244255,-500.0,0.00055616,120]
[329984742,1718896244265,-500.0,0.00055616,120]
[329984744,1718896244274,-500.0,0.00055616,120]
[329984746,1718896244284,-554.9169488,0.00055616,120]
[329984748,1718896244294,-500.0,0.00055616,120]
[329984750,1718896244304,-500.0,0.00055616,120]
[329984752,1718896244314,-1347.71,0.00055616,120]
[329984753,1718896244324,-633.88,0.00055616,120]
[329984755,1718896244334,-500.0,0.00055616,120]
[329984757,1718896244344,-500.0,0.00055616,120]
[329984758,1718896244355,-2316.04,0.00055616,120]
[329984759,1718896244366,-709.17,0.00055616,120]
[329984760,1718896244377,-500.0,0.00055616,120]
[329984761,1718896244386,-539.58,0.00055616,120]
[329984762,1718896244396,-500.0,0.00055616,120]
[329984763,1718896244408,-500.00372455,0.00055616,120]
[329984764,1718896244417,-1554.58,0.00055616,120]
[329984765,1718896244428,-500.0,0.00055616,120]
[329984766,1718896244438,-559.62,0.00055616,120]
[329984767,1718896244453,-500.0,0.00055616,2]
[329984768,1718896244463,-500.0,0.00055616,120]
[329984769,1718896244473,-1167.58,0.00055616,120]
[329984770,1718896244483,-500.0,0.00055616,120]
[329984771,1718896244492,-3012.35,0.00055616,120]
[329984772,1718896244501,-20641.66,0.00055616,120]
[329984773,1718896244510,-1547.37,0.00055616,120]
[329984774,1718896244520,-1875.3,0.00055616,120]
[329984775,1718896244529,-542.1,0.00055889,120]
[329984776,1718896244539,-500.0,0.0005589,2]
[329984777,1718896244549,-500.0,0.0005589,120]
[329984778,1718896244558,-1897.85,0.0005589,120]
[329984779,1718896244568,-957.68,0.0005589,120]
[329984780,1718896244577,-500.0,0.0005589,120]
[329984781,1718896244587,-500.0,0.0005589,120]
[329984782,1718896244670,-500.0,0.0005589,120]
[329984783,1718896244689,-500.0,0.0005589,120]
[329984784,1718896244701,-500.0,0.0005589,60]
[329984785,1718896244711,-500.0,0.0005589,120]
[329984786,1718896244720,-1016.9,0.0005589,120]
[329984787,1718896244730,-871.01,0.0005589,21]
[329984788,1718896244739,-1488.1,0.0005589,120]
[329984789,1718896244748,-500.0,0.0005589,120]
[329984790,1718896244758,-500.0,0.0005589,120]
[329984791,1718896244767,-500.0,0.0005589,120]
[329984792,1718896244777,-500.0,0.0005589,120]
[329984793,1718896244787,-500.0,0.0005589,120]
[329984794,1718896244797,-200.73923854,0.0005589,120]
[329984795,1718896244806,-1347.71,0.0005589,120]
[329984797,1718896244816,-633.88,0.0005589,120]
[329984799,1718896244826,-500.0,0.0005589,120]
[329984801,1718896244835,-500.0,0.0005589,120]
[329984803,1718896244845,-2316.04,0.0005589,120]
[329984805,1718896244855,-709.17,0.0005589,120]
[329984807,1718896244864,-500.0,0.0005589,120]
[329984808,1718896244874,-539.58,0.0005589,120]
[329984809,1718896244885,-500.0,0.0005589,120]
[329984810,1718896244894,-1554.58,0.0005589,120]
[329984811,1718896244907,-500.0,0.0005589,120]
[329984812,1718896244916,-559.62,0.0005589,120]
[329984813,1718896244926,-500.0,0.0005589,2]
[329984814,1718896244935,-500.0,0.0005589,120]
[329984815,1718896244944,-1167.58,0.0005589,120]
[329984816,1718896244954,-500.0,0.0005589,120]
[329984817,1718896244963,-3012.35,0.0005589,120]
[329984818,1718896244972,-20641.66,0.0005589,120]
[329984819,1718896244982,-1547.37,0.0005589,120]
[329984820,1718896244992,-542.1,0.00056163,120]
[329984821,1718896245002,-542.1,0.00056163,120]
[329984822,1718896245011,-500.0,0.00056164,2]
[329984823,1718896245021,-500.0,0.00056164,120]
[329984824,1718896245031,-1897.85,0.00056164,120]
[329984825,1718896245041,-957.68,0.00056164,120]
[329984826,1718896245051,-500.0,0.00056164,120]
[329984827,1718896245060,-500.0,0.00056164,120]
[329984828,1718896245070,-500.0,0.00056164,120]
[329984829,1718896245080,-500.0,0.00056164,120]
[329984830,1718896245090,-500.0,0.00056164,60]
[329984831,1718896245099,-500.0,0.00056164,120]
[329984832,1718896245109,-1016.9,0.00056164,120]
[329984833,1718896245119,-871.01,0.00056164,21]
[329984834,1718896245129,-1488.1,0.00056164,120]
[329984835,1718896245139,-500.0,0.00056164,120]
[329984836,1718896245149,-500.0,0.00056164,120]
[329984837,1718896245162,-299.16362908,0.00056164,120]
[329984838,1718896245172,-500.0,0.00056164,120]
[329984839,1718896245182,-500.0,0.00056164,120]
[329984840,1718896245191,-1347.71,0.00056164,120]
[329984841,1718896245201,-633.88,0.00056164,120]
[329984842,1718896245210,-149.66373818,0.00056164,120]
[329984843,1718896245282,-350.33626182,0.00056164,120]
[329984844,1718896245292,-500.0,0.00056164,120]
[329984845,1718896245301,-2316.04,0.00056164,120]
[329984846,1718896245311,-709.17,0.00056164,120]
[329984847,1718896245320,-500.0,0.00056164,120]
[329984848,1718896245330,-539.58,0.00056164,120]
[329984849,1718896245339,-500.0,0.00056164,120]
[329984850,1718896245348,-1554.58,0.00056164,120]
[329984851,1718896245361,-500.0,0.00056164,120]
[329984853,1718896245373,-559.62,0.00056164,120]
[329984854,1718896245382,-500.0,0.00056164,2]
[329984855,1718896245391,-500.0,0.00056164,120]
[329984856,1718896245400,-1167.58,0.00056164,120]
[329984857,1718896245415,-500.0,0.00056164,120]
[329984858,1718896245425,-2996.03373818,0.00056164,120]
[329984859,1718896245437,-1961.36275003,0.00056164,120]
[329984860,1718896245448,-15684.26351179,0.00056164,120]
[329984861,1718896245458,-3012.35,0.00056164,120]
[329984862,1718896245467,-1547.37,0.00056164,120]
[329984863,1718896245477,-542.1,0.00056437,120]
[329984864,1718896245488,-500.0,0.00056438,2]
[329984865,1718896245497,-500.0,0.00056438,120]
[329984866,1718896245506,-1897.85,0.00056438,120]
[329984867,1718896245516,-957.68,0.00056438,120]
[329984868,1718896245527,-500.0,0.00056438,120]
[329984869,1718896245536,-500.0,0.00056438,120]
[329984870,1718896245547,-221.2,0.00056438,120]
[329984871,1718896245557,-500.0,0.00056438,120]
[329984872,1718896245566,-500.0,0.00056438,60]
[329984873,1718896245575,-500.0,0.00056438,120]
[329984874,1718896245585,-1016.9,0.00056438,120]
[329984875,1718896245595,-871.01,0.00056438,21]
[329984876,1718896245605,-1488.1,0.00056438,120]
[329984877,1718896245615,-482.83381474,0.00056438,120]
[329984878,1718896245625,-500.0,0.00056438,120]
[329984879,1718896245636,-500.0,0.00056438,120]
[329984880,1718896245645,-500.0,0.00056438,120]
[329984881,1718896245655,-1347.71,0.00056438,120]
[329984882,1718896245665,-633.88,0.00056438,120]
[329984883,1718896245675,-500.0,0.00056438,120]
[329984884,1718896245684,-500.0,0.00056438,120]
[329984885,1718896245699,-2316.04,0.00056438,120]
[329984886,1718896245712,-709.17,0.00056438,120]
[329984887,1718896245727,-500.0,0.00056438,120]
[329984888,1718896245740,-539.58,0.00056438,120]
[329984889,1718896245753,-500.0,0.00056438,120]
[329984890,1718896245763,-1554.58,0.00056438,120]
[329984891,1718896245774,-500.0,0.00056438,120]
[329984892,1718896245787,-559.62,0.00056438,120]
[329984893,1718896245800,-509.94061494,0.00056438,2]
[329984894,1718896245812,-500.0,0.00056438,120]
[329984895,1718896245825,-1167.58,0.00056438,120]
[329984896,1718896245838,-500.0,0.00056438,120]
[329984897,1718896245851,-3012.35,0.00056438,120]
[329984898,1718896245863,-18672.39277108,0.00056438,120]
[329984899,1718896246006,-1437.326,0.0005589,120]
[329984906,1718896246966,-500.0,0.00054794,21]
[329984908,1718896246977,-500.0,0.00055068,21]
[329984910,1718896246989,-500.0,0.00055342,21]
[329984912,1718896246999,-437.974,0.0005589,120]
[329984914,1718896247010,-1875.3,0.00056164,120]
[329984916,1718896247021,-1969.26722892,0.00056438,120]
[329984918,1718896247032,-1547.37,0.00056438,120]
[329984920,1718896247044,-1875.3,0.00056438,120]
[329984923,1718896247055,-4928.66743873,0.00056614,120]
[329984925,1718896247066,-542.1,0.00056711,120]
[329984927,1718896247076,-500.0,0.00056712,2]
[329984929,1718896247087,-500.0,0.00056712,120]
[329984931,1718896247098,-1897.85,0.00056712,120]
[329984933,1718896247109,-957.68,0.00056712,120]
[329984935,1718896247120,-500.0,0.00056712,120]
[329984937,1718896247132,-500.0,0.00056712,120]
[329984939,1718896247143,-500.0,0.00056712,120]
[329984941,1718896247153,-495.76919417,0.00056712,60]
[329984943,1718896247164,-500.0,0.00056712,120]
[329984945,1718896247173,-1016.9,0.00056712,120]
[329984947,1718896247183,-1488.1,0.00056712,120]
[329984949,1718896247191,-500.0,0.00056712,120]
[329984951,1718896247201,-500.0,0.00056712,120]
[329984952,1718896247210,-500.0,0.00056712,120]
[329984954,1718896247220,-1347.71,0.00056712,120]
[329984956,1718896247229,-633.88,0.00056712,120]
[329984957,1718896247238,-293.04618733,0.00056712,120]
[329984958,1718896247670,-1000.0,0.00055,120]
[329984959,1718896247686,-405.30359528,0.00055616,21]
[329984962,1718896338227,1459.32543093,0.00023,3]
[329985008,1718897225158,-177.387178,0.00020438,2]
[329985009,1718897225179,-169.93936,0.00021096,2]
[329985010,1718897225200,-300.0,0.00021324,2]
[329985011,1718897225222,-1045.78741685,0.00021325,2]
[329985012,1718897228168,-300.0,0.00021324,2]
[329985013,1718897228190,-380.02093391,0.00021325,2]
[329985014,1718897242117,-427.41766937,0.00021325,2]
[329985015,1718897349372,-8759.10676547,0.00021325,2]
[329985016,1718897349393,-780.3584465,0.00021525,2]
[329985017,1718897349413,-208.12537661,0.00021999,2]
[329985018,1718897349435,-648.88204626,0.00021999,2]
[329985019,1718897349454,-48540.67456907,0.00022,3]
[329985020,1718897349474,-1063.78145888,0.00022599,2]
[329985021,1718897349494,-515.8792194,0.00022699,2]
[329985022,1718897349513,-9151.64355735,0.000228,2]
[329985023,1718897349532,-190.47084285,0.000229,2]
[329985024,1718897349552,-515.87921937,0.00030698,2]
[329985025,1718897406820,491.53123003,0.000207,2]
[329985026,1718897408210,491.53123003,0.000257,2]
[329985105,1718897441054,-153.0,0.00033076,2]
[329985107,1718897441065,-153.0,0.00033076,2]
[329985110,1718897441075,-153.0,0.00033076,2]
[329985113,1718897441085,-153.0,0.00033076,2]
[329985116,1718897441095,-45307.77,0.00036,10]
[329985119,1718897441105,-309.52753163,0.00038349,2]
[329985121,1718897441115,-162.90791332,0.00038449,7]
[329985122,1718897441125,-153.0,0.00041806,2]
[329985124,1718897441135,-309.52753162,0.00042435,2]
[329985127,1718897441144,-154.20814625,0.00042646,30]
[329985129,1718897441155,-154.20814625,0.00044096,30]
[329985130,1718897441165,-154.20814625,0.00044444,30]
[329985131,1718897441178,-309.52753162,0.00046522,2]
[329985132,1718897441190,-163.0,0.00047,90]
[329985133,1718897441202,-154.20814625,0.00047741,30]
[329985134,1718897441211,-154.20814625,0.00048574,30]
[329985135,1718897441221,-163.0,0.00048904,90]
[329985136,1718897441231,-500.0,0.00049315,120]
[329985137,1718897441241,-2135.87531943,0.0005,7]
[329985138,1718897441251,-309.52753162,0.00050608,2]
[329985139,1718897441260,-154.20814625,0.00053016,60]
[329985140,1718897441270,-154.20814628,0.0005324,60]
[329985141,1718897441281,-401.35,0.0005429,3]
[329985142,1718897441291,-41283.57,0.000543,120]
[329985143,1718897441300,-8866.0,0.000543,120]
[329985144,1718897441309,-2000.0,0.00054694,2]
[329985145,1718897441319,-309.52753162,0.00054694,2]
[329985146,1718897441329,-1241.73574366,0.00054794,61]
[329985147,1718897441340,-788.73,0.00054794,120]
[329985148,1718897441349,-233.50982135,0.00054794,120]
[329985149,1718897441359,-504.87506414,0.00054794,120]
[329985150,1718897441368,-512.28071716,0.00054794,120]
[329985151,1718897441378,-500.0,0.00054794,120]
[329985152,1718897441387,-500.0,0.00054794,120]
[329985153,1718897441397,-549.76,0.00054794,120]
[329985154,1718897441406,-500.0,0.00054794,120]
[329985155,1718897441416,-500.0,0.00054794,120]
[329985156,1718897441425,-500.0,0.00054794,120]
[329985157,1718897441434,-500.0,0.00054794,120]
[329985158,1718897441444,-200.0,0.00054794,7]
[329985159,1718897441456,-500.0,0.00054794,120]
[329985161,1718897441465,-506.17722419,0.00054794,120]
[329985163,1718897441475,-220.50584687,0.00054794,120]
[329985165,1718897441485,-520.47,0.00054794,120]
[329985166,1718897441495,-500.0,0.00054794,120]
[329985167,1718897441504,-500.0,0.00054794,120]
[329985168,1718897441513,-500.0,0.00054794,120]
[329985169,1718897441522,-500.0,0.00054794,20]
[329985170,1718897441532,-282.87561693,0.00054794,120]
[329985171,1718897441541,-500.0,0.00054794,120]
[329985172,1718897441551,-500.0,0.00054794,120]
[329985173,1718897441560,-500.0,0.00054794,120]
[329985180,1718897441690,-500.0,0.00054794,2]
[329985182,1718897441702,-500.0,0.00054794,120]
[329985183,1718897441711,-500.0,0.00054794,120]
[329985185,1718897441721,-500.0,0.00054794,120]
[329985187,1718897441734,-500.0,0.00054794,120]
[329985189,1718897441744,-500.0,0.00054794,120]
[329985191,1718897441755,-500.0,0.00054794,120]
[329985192,1718897441766,-500.0,0.00054794,60]
[329985193,1718897441778,-500.0,0.00054794,120]
[329985194,1718897441788,-365.34464332,0.00054794,120]
[329985195,1718897441797,-500.0,0.00054794,120]
[329985196,1718897441807,-500.0,0.00054794,120]
[329985197,1718897441816,-500.0,0.00054794,120]
[329985198,1718897441826,-500.0,0.00054794,120]
[329985199,1718897441835,-500.0,0.00054794,120]
[329985200,1718897441847,-500.0,0.00054794,120]
[329985201,1718897441857,-500.0,0.00054794,120]
[329985202,1718897441866,-500.0,0.00054794,120]
[329985203,1718897441875,-500.0,0.00054794,120]
[329985204,1718897441884,-190.0202906,0.00054794,120]
[329985205,1718897441894,-500.0,0.00054794,120]
[329985206,1718897441904,-500.0,0.00054794,120]
[329985207,1718897441913,-500.0,0.00054794,120]
[329985208,1718897441923,-500.0,0.00054794,120]
[329985209,1718897441932,-504.49477912,0.00054794,120]
[329985210,1718897441943,-500.0,0.00054794,120]
[329985211,1718897441954,-500.0,0.00054794,120]
[329985212,1718897441963,-513.08969782,0.00054794,120]
[329985213,1718897441972,-500.0,0.00054794,120]
[329985214,1718897441982,-500.0,0.00054794,120]
[329985215,1718897441991,-500.0078982,0.00054794,120]
[329985216,1718897442001,-500.0,0.00054794,120]
[329985217,1718897442011,-500.0,0.00054794,120]
[329985218,1718897442020,-500.0,0.00054794,120]
[329985219,1718897442030,-503.9108137,0.00054794,120]
[329985220,1718897442040,-500.0,0.00054794,120]
[329985221,1718897442050,-500.0,0.00054794,120]
[329985222,1718897442060,-500.0,0.00054794,120]